bitfinex/quotes_BTCUSD_20251201
["timestamp","ask_amount","ask_price","bid_price","bid_amount"]
[1764566244306,0.23278551,85916.0,85915.0,0.002]
[1764566244444,0.23278551,85916.0,85910.0,0.00037554]
[1764566244445,0.23279234,85914.0,85910.0,0.00037554]
[1764566244647,0.01158806,85913.0,85910.0,0.00037554]
[1764566245058,0.24438711,85911.0,85910.0,0.00037554]
[1764566245601,0.23279905,85911.0,85910.0,0.08341554]
[1764566246368,0.23279905,85911.0,85910.0,0.08641554]
[1764566247676,0.01163914,85917.0,85910.0,0.15562554]
[1764566247819,0.01899859,85921.0,85920.0,0.04628]
[1764566248030,0.01163954,85914.0,85911.0,0.06921]
[1764566248403,0.01163954,85914.0,85913.0,0.04628]
[1764566248914,0.2444134,85920.0,85913.0,0.11549]
[1764566249118,0.01163873,85920.0,85919.0,0.04628]
[1764566249518,0.01163873,85920.0,85919.0,0.11549]
[1764566249920,0.01163792,85926.0,85921.0,0.01163859]
[1764566250119,0.01163792,85926.0,85925.0,0.08304]
[1764566250322,0.25175254,85928.0,85926.0,0.23275842]
[1764566250323,0.00736,85928.0,85926.0,0.23275842]
[1764566250547,0.00736,85928.0,85927.0,0.11549]
[1764566251621,0.240113,85928.0,85927.0,0.11549]
[1764566251810,0.240113,85928.0,85927.0,0.004]
[1764566251811,0.25597871,85928.0,85927.0,0.004]
[1764566252023,0.02322571,85928.0,85927.0,0.05028]
[1764566252221,0.01158806,85928.0,85927.0,0.11949]
[1764566252578,0.23275202,85929.0,85927.0,0.11949]
[1764566252722,0.23275202,85929.0,85928.0,0.11549]
[1764566254156,0.24438707,85930.0,85928.0,0.11849]
[1764566254358,0.24438707,85930.0,85929.0,0.06921]
[1764566254555,0.24438707,85930.0,85929.0,0.11549]
[1764566255944,0.24438707,85930.0,85929.0,0.11849]
[1764566256350,0.25597513,85930.0,85929.0,0.003]
[1764566257650,0.25599307,85923.0,85920.0,0.11760873]
[1764566257871,0.25599307,85923.0,85920.0,0.10597]
[1764566258073,0.25599307,85923.0,85922.0,0.04628]
[1764566258473,0.25599307,85923.0,85922.0,0.11549]
[1764566258871,0.01158806,85923.0,85922.0,0.11549]
[1764566259076,0.01158806,85923.0,85922.0,0.11949]
[1764566259694,0.23275624,85927.0,85922.0,0.11949]
[1764566259695,0.01163765,85928.0,85922.0,0.3522568]
[1764566259897,0.24439072,85928.0,85923.0,0.31361307]
[1764566260097,0.24439072,85928.0,85927.0,0.04628]
[1764566260613,0.25597878,85928.0,85927.0,0.11549]
[1764566260964,0.24439072,85928.0,85927.0,0.11549]
[1764566261733,0.24439072,85928.0,85927.0,0.11849]
[1764566264863,0.01163724,85931.0,85927.0,0.11849]
[1764566265061,0.01163737,85930.0,85928.0,0.06921]
[1764566265420,0.24438657,85930.0,85929.0,0.04628]
[1764566266172,0.24438657,85930.0,85929.0,0.11549]
[1764566266884,0.24438657,85930.0,85929.0,0.15041]
[1764566267530,0.01163737,85930.0,85929.0,0.15041]
[1764566267739,0.0116371,85932.0,85929.0,0.15041]
[1764566267937,0.24437248,85935.0,85931.0,0.0457]
[1764566268164,0.24437248,85935.0,85934.0,0.0457]
[1764566268373,0.01163616,85939.0,85934.0,0.0457]
[1764566268374,0.03210346,85942.0,85936.0,0.01163656]
[1764566268535,0.02512321,85959.0,85954.0,0.01163412]
[1764566268776,0.01899318,85961.0,85960.0,0.08062]
[1764566268937,0.01899318,85961.0,85960.0,0.14612]
[1764566269447,0.00742429,85961.0,85960.0,0.14612]
[1764566270591,0.01163412,85954.0,85948.0,0.01163494]
[1764566270927,0.24427607,85952.0,85944.0,0.0655]
[1764566271085,0.24427607,85952.0,85944.0,0.07713548]
[1764566271302,0.24427607,85952.0,85951.0,0.08062]
[1764566271682,0.24427607,85952.0,85951.0,0.03492]
[1764566272094,0.24427607,85952.0,85951.0,0.03792]
[1764566274601,0.24427607,85952.0,85951.0,0.003]
[1764566274992,0.56727607,85952.0,85951.0,0.003]
[1764566275827,0.56727607,85952.0,85933.0,0.03492]
[1764566275828,0.23273675,85934.0,85933.0,0.03492]
[1764566275973,0.24432481,85934.0,85933.0,0.03492]
[1764566276614,0.23272151,85940.0,85923.0,0.03492]
[1764566276615,0.23276383,85924.0,85923.0,0.03492]
[1764566276963,0.23282807,85924.0,85923.0,0.08062]
[1764566277114,0.24441613,85924.0,85923.0,0.08062]
[1764566277293,0.24441613,85924.0,85923.0,0.14612]
[1764566278360,6.424e-05,85924.0,85923.0,0.14612]
[1764566279145,6.424e-05,85924.0,85923.0,0.15212]
[1764566279361,0.23282807,85924.0,85923.0,0.14612]
[1764566279860,6.424e-05,85924.0,85923.0,0.14612]
[1764566280155,6.424e-05,85924.0,85923.0,0.14712]
[1764566280664,6.424e-05,85924.0,85923.0,0.15112]
[1764566280865,6.424e-05,85924.0,85923.0,0.005]
[1764566281040,0.0116523,85924.0,85923.0,0.005]
[1764566281466,0.0116523,85924.0,85923.0,0.0497]
[1764566282024,0.0116523,85924.0,85923.0,0.004]
[1764566282243,0.01158806,85922.0,85921.0,0.03492]
[1764566282818,0.01158806,85922.0,85921.0,0.08062]
[1764566283024,0.01158806,85922.0,85921.0,0.14612]
[1764566283700,0.01158806,85922.0,85907.0,0.01164049]
[1764566283701,0.01158806,85922.0,85888.0,0.06275043]
[1764566283702,0.23285868,85889.0,85888.0,0.06275043]
[1764566283886,0.33464374,85883.0,85880.0,0.0002]
[1764566284096,0.56746844,85881.0,85880.0,0.0002]
[1764566284898,0.56753263,85881.0,85880.0,0.0002]
[1764566285221,0.56753263,85881.0,85880.0,0.0012]
[1764566286584,0.56330457,85881.0,85880.0,0.0469]
[1764566286786,0.57489263,85881.0,85880.0,0.0012]
[1764566287371,0.57489263,85881.0,85880.0,0.0469]
[1764566287575,0.56330457,85881.0,85880.0,0.0012]
[1764566287876,0.57489263,85881.0,85880.0,0.0012]
[1764566289246,0.57489263,85881.0,85880.0,0.00216387]
[1764566289909,0.57489263,85881.0,85880.0,0.00116387]
[1764566292945,0.57489263,85881.0,85880.0,0.04686387]
[1764566292946,0.24453263,85881.0,85880.0,0.04686387]
[1764566293121,0.24030457,85881.0,85880.0,0.04686387]
[1764566293318,0.25189263,85881.0,85880.0,0.04686387]
[1764566293529,0.25189263,85881.0,85880.0,0.00116387]
[1764566294350,0.25189263,85881.0,85880.0,0.00216387]
[1764566295187,0.57489263,85881.0,85880.0,0.00216387]
[1764566296114,0.57489263,85881.0,85880.0,0.00116387]
[1764566297109,0.57589263,85881.0,85880.0,0.00116387]
[1764566297883,0.57489263,85881.0,85880.0,0.00116387]
[1764566298084,0.57589263,85881.0,85880.0,0.00116387]
[1764566298551,0.56853263,85881.0,85880.0,0.00116387]
[1764566298750,0.57589263,85881.0,85880.0,0.00116387]
[1764566299394,0.57489263,85881.0,85880.0,0.00116387]
[1764566299594,0.57589263,85881.0,85880.0,0.00116387]
[1764566299994,0.57489263,85881.0,85880.0,0.00116387]
[1764566300206,0.57589263,85881.0,85880.0,0.00116387]
[1764566301879,0.56853263,85881.0,85880.0,0.00116387]
[1764566302183,0.57589263,85881.0,85880.0,0.00116387]
[1764566306102,0.55694457,85881.0,85880.0,0.00116387]
[1764566306304,0.57589263,85881.0,85880.0,0.00116387]
[1764566306739,0.56853263,85881.0,85880.0,0.00116387]
[1764566306941,0.25289263,85881.0,85880.0,0.00116387]
[1764566307216,0.25189263,85881.0,85880.0,0.00116387]
[1764566307427,0.25189263,85881.0,85880.0,0.00216387]
[1764566311849,0.24030457,85881.0,85880.0,0.00216387]
[1764566312052,0.24453263,85881.0,85880.0,0.00216387]
[1764566312226,0.24030457,85881.0,85880.0,0.00216387]
[1764566312448,0.25189263,85881.0,85880.0,0.00216387]
[1764566312606,0.25189263,85881.0,85880.0,0.00116387]
[1764566313379,0.28321809,85881.0,85880.0,0.00116387]
[1764566314973,0.28321809,85881.0,85880.0,0.04636387]
[1764566315587,0.28321809,85881.0,85880.0,0.00116387]
[1764566316731,0.57489263,85881.0,85880.0,0.00116387]
[1764566316870,0.59996399,85881.0,85880.0,0.00116387]
[1764566317070,0.64173127,85881.0,85880.0,0.00116387]
[1764566318694,0.63537127,85881.0,85880.0,0.00116387]
[1764566318892,0.64273127,85881.0,85880.0,0.00116387]
[1764566320006,0.60096399,85881.0,85880.0,0.00116387]
[1764566320389,0.64273127,85881.0,85880.0,0.00116387]
[1764566320925,0.60096399,85881.0,85880.0,0.00116387]
[1764566321278,0.64286706,85881.0,85880.0,0.00116387]
[1764566322477,4.17834989,85881.0,85880.0,0.00116387]
[1764566322676,1.27914183,85881.0,85880.0,0.00116387]
[1764566322900,1.45591789,85881.0,85880.0,0.00116387]
[1764566323108,0.77718989,85881.0,85880.0,0.00116387]
[1764566323444,0.59360399,85881.0,85880.0,0.00116387]
[1764566323649,0.64386045,85881.0,85880.0,0.00116387]
[1764566323864,0.60196399,85881.0,85880.0,0.00116387]
[1764566324662,0.59460399,85881.0,85880.0,0.00116387]
[1764566324881,0.60096399,85881.0,85880.0,0.00116387]
[1764566325281,0.59360399,85881.0,85880.0,0.00116387]
[1764566325483,0.60096399,85881.0,85880.0,0.00116387]
[1764566325691,0.60196399,85881.0,85880.0,0.04636387]
[1764566326216,0.02713555,85881.0,85880.0,0.11195387]
[1764566326389,0.00206419,85881.0,85880.0,0.11195387]
[1764566327986,6.419e-05,85881.0,85880.0,0.11195387]
[1764566328189,6.419e-05,85881.0,85880.0,0.10834448]
[1764566328395,6.419e-05,85881.0,85880.0,0.11234448]
[1764566328600,6.419e-05,85881.0,85880.0,0.10834448]
[1764566329017,6.419e-05,85881.0,85880.0,0.11634448]
[1764566330995,6.419e-05,85881.0,85880.0,0.43934448]
[1764566332389,6.419e-05,85881.0,85880.0,0.11634448]
[1764566333998,0.01164347,85885.0,85882.0,0.04198]
[1764566333999,0.01160499,85883.0,85882.0,0.04198]
[1764566334191,0.01160499,85883.0,85882.0,0.00011861]
[1764566334764,0.05230241,85883.0,85882.0,0.00011861]
[1764566335175,0.04071435,85883.0,85882.0,0.00011861]
[1764566335359,0.05230241,85883.0,85882.0,0.00511861]
[1764566336080,0.05230241,85883.0,85882.0,0.00011861]
[1764566336280,0.37530241,85883.0,85882.0,0.00011861]
[1764566336441,0.34619305,85883.0,85882.0,0.00011861]
[1764566337538,0.34619305,85883.0,85882.0,0.00111861]
[1764566339965,0.35355305,85883.0,85882.0,0.00111861]
[1764566342187,0.34196499,85883.0,85882.0,0.00111861]
[1764566342399,0.35355305,85883.0,85882.0,0.00111861]
[1764566342922,0.34619305,85883.0,85882.0,0.00111861]
[1764566343123,0.01896499,85883.0,85882.0,0.10553861]
[1764566343305,0.01160499,85883.0,85882.0,0.10553861]
[1764566343514,0.01896499,85883.0,85882.0,0.10553861]
[1764566343714,0.03055305,85883.0,85882.0,0.00111861]
[1764566343879,0.05966241,85883.0,85882.0,0.00111861]
[1764566344566,0.04807435,85883.0,85882.0,0.00111861]
[1764566344727,0.05966241,85883.0,85882.0,0.00111861]
[1764566346115,0.38266241,85883.0,85882.0,0.00111861]
[1764566346316,0.35355305,85883.0,85882.0,0.00111861]
[1764566349513,0.33460499,85883.0,85882.0,0.00111861]
[1764566349809,0.35355305,85883.0,85882.0,0.00111861]
[1764566354978,0.34887506,85883.0,85882.0,0.00111861]
[1764566358109,2.07731508,85883.0,85882.0,0.00111861]
[1764566358347,0.55590207,85873.0,85872.0,0.0002571]
[1764566358475,0.66239904,85873.0,85872.0,0.00032129]
[1764566358872,1.94582204,85873.0,85872.0,0.00032129]
[1764566359370,2.27937895,85873.0,85872.0,0.00032129]
[1764566359563,1.68658404,85873.0,85872.0,0.00032129]
[1764566359761,1.74303604,85873.0,85872.0,0.00032129]
[1764566359918,1.74883304,85873.0,85872.0,0.00032129]
[1764566360154,0.66339904,85873.0,85872.0,0.00032129]
[1764566360370,2.11408404,85873.0,85872.0,0.00032129]
[1764566360817,2.22755395,85873.0,85872.0,0.00032129]
[1764566361015,2.05171404,85873.0,85872.0,0.00032129]
[1764566361236,1.96561604,85873.0,85872.0,0.00032129]
[1764566361439,2.13769104,85873.0,85872.0,0.00032129]
[1764566361635,2.51446304,85873.0,85872.0,0.00032129]
[1764566361841,3.01525304,85873.0,85872.0,0.00032129]
[1764566362061,3.31787895,85873.0,85872.0,0.00032129]
[1764566362545,1.52962162,85861.0,85840.0,0.0002]
[1764566362672,1.5735956,85861.0,85860.0,0.00059524]
[1764566362878,0.5999086,85861.0,85860.0,0.00059524]
[1764566363106,1.6571286,85861.0,85860.0,0.00059524]
[1764566363706,1.3971286,85861.0,85860.0,0.00059524]
[1764566364400,1.37210268,85861.0,85860.0,0.00059524]
[1764566364602,1.48580559,85861.0,85860.0,0.00059524]
[1764566364829,1.35713559,85861.0,85860.0,0.00059524]
[1764566365227,1.3821447,85861.0,85860.0,0.00059524]
[1764566365390,1.03146359,85861.0,85860.0,0.00059524]
[1764566365601,0.91776068,85861.0,85860.0,0.00059524]
[1764566366673,0.91040068,85861.0,85860.0,0.00059524]
[1764566366959,0.57488268,85861.0,85860.0,0.00059524]
[1764566368130,0.57488268,85861.0,85860.0,0.00098096]
[1764566369412,0.24452268,85861.0,85860.0,0.04256096]
[1764566369603,0.25188268,85861.0,85860.0,0.04256096]
[1764566370354,0.25188268,85861.0,85860.0,0.00098096]
[1764566371717,0.24452268,85861.0,85860.0,0.00098096]
[1764566371857,0.25188268,85861.0,85860.0,0.00098096]
[1764566375704,0.57488268,85861.0,85860.0,0.00098096]
[1764566377477,2.51944159,85861.0,85860.0,0.00098096]
[1764566377704,0.68858559,85861.0,85860.0,0.00098096]
[1764566377911,2.53482359,85861.0,85860.0,0.00098096]
[1764566378064,2.27482359,85861.0,85860.0,0.00098096]
[1764566378395,2.33957196,85861.0,85860.0,0.00098096]
[1764566378609,0.71358996,85861.0,85860.0,0.00098096]
[1764566378845,2.33957196,85861.0,85860.0,0.00098096]
[1764566379024,2.92998596,85861.0,85860.0,0.00098096]
[1764566379311,2.49772196,85861.0,85860.0,0.00098096]
[1764566379514,0.71358996,85861.0,85860.0,0.00098096]
[1764566379729,2.76235196,85861.0,85860.0,0.00098096]
[1764566379933,2.43585996,85861.0,85860.0,0.00098096]
[1764566380150,0.71358996,85861.0,85860.0,0.00098096]
[1764566380705,2.12222496,85861.0,85860.0,0.00098096]
[1764566380904,2.08622496,85861.0,85860.0,0.00098096]
[1764566381129,2.01154496,85861.0,85860.0,0.00098096]
[1764566381503,0.71358996,85861.0,85860.0,0.00098096]
[1764566381709,1.68477496,85861.0,85860.0,0.00098096]
[1764566381909,1.94465896,85861.0,85860.0,0.00098096]
[1764566382107,0.70778105,85861.0,85860.0,0.00098096]
[1764566382293,0.25188268,85861.0,85860.0,0.00098096]
[1764566385863,0.57488268,85861.0,85860.0,0.00098096]
[1764566386265,0.59991103,85861.0,85860.0,0.00098096]
[1764566389066,0.04397641,85861.0,85860.0,0.00098096]
[1764566389283,0.07309323,85861.0,85860.0,0.00098096]
[1764566389541,0.23298618,85842.0,85841.0,0.07692096]
[1764566389757,0.24457424,85842.0,85841.0,0.01827956]
[1764566389961,0.23298549,85843.0,85841.0,0.05794956]
[1764566390155,0.23298549,85843.0,85841.0,0.01827956]
[1764566390391,0.23298549,85843.0,85842.0,0.09843]
[1764566390583,0.23298549,85843.0,85841.0,0.01827956]
[1764566390784,0.01158806,85842.0,85841.0,0.01827956]
[1764566391004,0.23298549,85843.0,85841.0,0.0001186]
[1764566391266,0.01158806,85842.0,85841.0,0.0001186]
[1764566391466,0.01158806,85842.0,85841.0,0.0051186]
[1764566391784,0.01158806,85842.0,85841.0,0.0001186]
[1764566392232,0.23298549,85843.0,85841.0,0.0051186]
[1764566392406,0.04071133,85842.0,85841.0,0.0001186]
[1764566392578,0.04071133,85842.0,85841.0,0.0021186]
[1764566392991,0.04071133,85842.0,85841.0,0.0001186]
[1764566394424,0.04071133,85842.0,85841.0,0.0021186]
[1764566394658,0.04071133,85842.0,85841.0,0.0001186]
[1764566394833,0.04071133,85842.0,85841.0,0.0021186]
[1764566395040,0.04071133,85842.0,85841.0,0.0027295]
[1764566395495,0.36371133,85842.0,85841.0,0.0027295]
[1764566395771,0.33458806,85842.0,85841.0,0.0027295]
[1764566397959,0.34194806,85842.0,85841.0,0.0027295]
[1764566401361,0.23298549,85843.0,85841.0,0.1011595]
[1764566401601,0.23298549,85843.0,85841.0,0.0021186]
[1764566401602,0.01158806,85842.0,85841.0,0.0021186]
[1764566401970,0.36371133,85842.0,85841.0,0.0417886]
[1764566402308,0.33458806,85842.0,85841.0,0.0001186]
[1764566402511,0.33458806,85842.0,85841.0,0.0021186]
[1764566402712,0.323,85842.0,85841.0,0.1005486]
[1764566402955,0.01894806,85842.0,85841.0,0.1005486]
[1764566403699,0.01894806,85842.0,85841.0,0.0985486]
[1764566404055,0.01894806,85842.0,85841.0,0.1005486]
[1764566404385,0.00736,85842.0,85841.0,0.0417886]
[1764566404590,0.01894806,85842.0,85841.0,0.0417886]
[1764566404825,0.01894806,85842.0,85841.0,0.1005486]
[1764566406538,0.01894806,85842.0,85841.0,0.0021186]
[1764566406750,0.04282732,85842.0,85841.0,0.0021186]
[1764566407150,0.04282732,85842.0,85841.0,0.0027295]
[1764566407349,0.03123926,85842.0,85841.0,0.0423995]
[1764566407533,0.00736,85842.0,85841.0,0.1011595]
[1764566407737,0.23298549,85843.0,85841.0,0.1011595]
[1764566407942,0.0116489,85845.0,85842.0,0.09843]
[1764566408140,0.01164795,85852.0,85849.0,0.01164835]
[1764566408378,0.24460349,85854.0,85852.0,0.02888]
[1764566408551,0.24460349,85854.0,85853.0,0.03967]
[1764566408773,0.24460349,85854.0,85853.0,0.09843]
[1764566409788,0.01164768,85854.0,85853.0,0.09843]
[1764566410224,0.23294699,85857.0,85853.0,0.09843]
[1764566410446,0.0312652,85878.0,85853.0,0.09843]
[1764566410447,0.01164605,85866.0,85861.0,0.01164673]
[1764566410612,0.23290045,85874.0,85861.0,0.01164673]
[1764566410613,0.0116451,85873.0,85867.0,0.01164591]
[1764566410876,0.01164578,85868.0,85865.0,0.02888]
[1764566411076,0.24456374,85868.0,85866.0,0.05876]
[1764566411306,0.01164578,85868.0,85867.0,0.03967]
[1764566411504,0.01164564,85869.0,85867.0,0.09843]
[1764566411715,0.01164564,85869.0,85868.0,0.03967]
[1764566411888,0.01164564,85869.0,85852.0,0.26183768]
[1764566411889,0.23293733,85860.0,85852.0,0.08764]
[1764566412293,0.23293733,85860.0,85859.0,0.12731]
[1764566413592,0.23293733,85860.0,85859.0,0.13131]
[1764566413796,0.55593733,85860.0,85859.0,0.004]
[1764566414031,0.56752539,85860.0,85859.0,0.004]
[1764566415014,0.56752539,85860.0,85851.0,0.02888]
[1764566415015,0.2445471,85852.0,85851.0,0.02888]
[1764566415217,0.2445471,85852.0,85844.0,0.02888]
[1764566415218,0.2445661,85845.0,85844.0,0.02888]
[1764566415402,0.23297804,85845.0,85844.0,0.0289986]
[1764566415607,0.24462363,85847.0,85844.0,0.0686686]
[1764566415825,0.24462363,85847.0,85846.0,0.03967]
[1764566416242,0.24462363,85847.0,85846.0,0.09843]
[1764566416645,0.01164863,85847.0,85846.0,0.09843]
[1764566417045,0.01164863,85847.0,85846.0,0.10243]
[1764566417266,0.24461741,85849.0,85846.0,0.10243]
[1764566417435,0.2329699,85848.0,85847.0,0.05786]
[1764566417841,0.2329699,85848.0,85847.0,0.09746]
[1764566418966,0.01164822,85850.0,85847.0,0.09746]
[1764566419168,0.23296718,85849.0,85848.0,0.05786]
[1764566419312,0.01164822,85850.0,85849.0,0.0396]
[1764566419715,0.01164822,85850.0,85849.0,0.09746]
[1764566420773,0.01164822,85850.0,85849.0,0.10046]
[1764566422980,0.01164822,85850.0,85849.0,0.0426]
[1764566423179,0.02323628,85850.0,85849.0,0.003]
[1764566423780,0.4215126,85850.0,85849.0,0.003]
[1764566423974,0.34623628,85850.0,85849.0,0.003]
[1764566424164,0.34623628,85850.0,85844.0,0.0001186]
[1764566424165,0.01158806,85845.0,85844.0,0.0001186]
[1764566424360,0.33458806,85845.0,85844.0,0.0001186]
[1764566425313,0.33458806,85845.0,85844.0,0.0001186]
[1764566426595,0.34294806,85845.0,85844.0,0.0001186]
[1764566426796,0.34294806,85845.0,85844.0,0.0975786]
[1764566427002,0.34294806,85845.0,85844.0,0.09809303]
[1764566427218,0.34294806,85845.0,85844.0,0.04023303]
[1764566427400,0.34194806,85845.0,85844.0,0.04023303]
[1764566427821,0.34294806,85845.0,85844.0,0.09809303]
[1764566428540,0.001,85845.0,85844.0,0.09809303]
[1764566428963,0.23297532,85846.0,85844.0,0.09809303]
[1764566429164,0.23297532,85846.0,85845.0,0.09746]
[1764566429672,0.01164727,85857.0,85845.0,0.09746]
[1764566429864,0.01164727,85857.0,85846.0,0.05786]
[1764566429865,0.01164822,85850.0,85846.0,0.05786]
[1764566430020,0.23297205,85848.0,85846.0,0.05786]
[1764566430438,0.23297804,85845.0,85844.0,0.0001186]
[1764566430856,0.2445661,85845.0,85844.0,0.0001186]
[1764566431264,0.23297804,85845.0,85844.0,0.0001186]
[1764566431466,0.2445661,85845.0,85844.0,0.0001186]
[1764566433066,0.2465661,85845.0,85844.0,0.0001186]
[1764566433427,0.2445661,85845.0,85844.0,0.0001186]
[1764566433629,0.2465661,85845.0,85844.0,0.0001186]
[1764566434028,0.2445661,85845.0,85844.0,0.0001186]
[1764566434348,0.2465661,85845.0,85844.0,0.0001186]
[1764566434547,0.2465661,85845.0,85844.0,0.00063303]
[1764566434747,0.5695661,85845.0,85844.0,0.00063303]
[1764566434960,0.745792,85845.0,85844.0,0.00063303]
[1764566435580,0.63208909,85845.0,85844.0,0.00063303]
[1764566435959,0.5695661,85845.0,85844.0,0.00063303]
[1764566437167,0.01358806,85845.0,85844.0,0.00063303]
[1764566437375,0.27568835,85845.0,85844.0,0.00063303]
[1764566437569,0.2465661,85845.0,85844.0,0.00063303]
[1764566437810,0.2465661,85845.0,85844.0,0.03988303]
[1764566437987,0.2539261,85845.0,85844.0,0.09979303]
[1764566438591,0.2519261,85845.0,85844.0,0.03988303]
[1764566438994,0.2529261,85845.0,85844.0,0.03988303]
[1764566439210,0.2529261,85845.0,85844.0,0.00063303]
[1764566439410,0.2519261,85845.0,85844.0,0.00063303]
[1764566440060,0.2519261,85845.0,85844.0,0.03988303]
[1764566440615,0.2529261,85845.0,85844.0,0.03988303]
[1764566440826,0.2529261,85845.0,85844.0,0.00063303]
[1764566441763,0.2519261,85845.0,85844.0,0.00063303]
[1764566442121,0.2529261,85845.0,85844.0,0.00063303]
[1764566442539,0.23397804,85845.0,85844.0,0.09979303]
[1764566442710,0.24133804,85845.0,85844.0,0.09979303]
[1764566443143,0.001,85845.0,85844.0,0.09979303]
[1764566443309,0.23293218,85862.0,85844.0,0.11144206]
[1764566443310,0.00736,85851.0,85844.0,0.11144206]
[1764566443502,0.00736,85851.0,85850.0,0.00032149]
[1764566443703,0.00736,85851.0,85850.0,0.03957149]
[1764566443955,0.00736,85851.0,85850.0,0.09948149]
[1764566444358,0.01164686,85860.0,85851.0,0.01164808]
[1764566444569,0.01164646,85863.0,85859.0,0.06734]
[1764566444570,0.01900659,85862.0,85859.0,0.06734]
[1764566444771,0.23293462,85861.0,85860.0,0.05991]
[1764566445188,0.23293462,85861.0,85860.0,0.09916]
[1764566446343,0.23293462,85861.0,85860.0,0.10016]
[1764566447950,0.23293462,85861.0,85860.0,0.04025]
[1764566448372,0.24452268,85861.0,85860.0,0.09767]
[1764566448580,0.00736,85862.0,85860.0,0.09767]
[1764566448905,0.00736,85862.0,85861.0,0.09653]
[1764566450147,0.01894806,85862.0,85861.0,0.09753]
[1764566450435,0.00736,85862.0,85861.0,0.09753]
[1764566451018,0.01164605,85866.0,85861.0,0.10917673]
[1764566451228,0.01900551,85870.0,85865.0,0.05075618]
[1764566451401,0.00736,85870.0,85869.0,0.03911]
[1764566451819,0.00736,85870.0,85869.0,0.09653]
[1764566452716,0.00736,85870.0,85869.0,0.09753]
[1764566457252,0.01894806,85870.0,85869.0,0.09753]
[1764566457469,0.00736,85870.0,85869.0,0.001]
[1764566457621,0.04806183,85870.0,85869.0,0.001]
[1764566458536,0.23293733,85860.0,85859.0,0.02809]
[1764566458951,0.24452539,85860.0,85859.0,0.02809]
[1764566459152,0.24452539,85860.0,85859.0,0.0672]
[1764566459936,0.23293733,85860.0,85859.0,0.0672]
[1764566460163,0.24452539,85860.0,85859.0,0.0672]
[1764566460369,0.23293733,85860.0,85859.0,0.02809]
[1764566460704,0.24452539,85860.0,85859.0,0.0672]
[1764566461063,0.02323465,85862.0,85859.0,0.12462]
[1764566461270,0.25616656,85862.0,85861.0,0.03911]
[1764566462409,0.25616656,85862.0,85861.0,0.09653]
[1764566463756,0.25616656,85862.0,85861.0,0.12786]
[1764566463993,0.01164659,85862.0,85861.0,0.12786]
[1764566464400,0.24457508,85864.0,85861.0,0.12786]
[1764566464574,0.24457508,85864.0,85863.0,0.03911]
[1764566464921,0.01164578,85868.0,85863.0,0.03911]
[1764566464922,0.01158806,85868.0,85863.0,0.05075646]
[1764566465140,0.24455191,85872.0,85867.0,0.05075591]
[1764566465362,0.01164523,85872.0,85870.0,0.07044]
[1764566465486,0.00736,85875.0,85870.0,0.31499328]
[1764566465692,0.00736,85875.0,85874.0,0.03911]
[1764566466233,0.00736,85875.0,85874.0,0.09653]
[1764566467451,0.00736,85875.0,85870.0,0.03133]
[1764566467452,0.2329075,85871.0,85870.0,0.03133]
[1764566467769,0.24449556,85871.0,85870.0,0.03133]
[1764566467919,0.24449556,85871.0,85870.0,0.07044]
[1764566468119,0.24449556,85871.0,85870.0,0.12786]
[1764566468903,0.0116451,85873.0,85870.0,0.12786]
[1764566469123,0.03059289,85875.0,85872.0,0.03911]
[1764566469342,0.03059289,85875.0,85871.0,0.05742]
[1764566469343,0.01164496,85874.0,85871.0,0.05742]
[1764566469520,0.23290402,85873.0,85871.0,0.05742]
[1764566470101,0.23290402,85873.0,85872.0,0.03911]
[1764566470449,0.23290402,85873.0,85872.0,0.09753]
[1764566470652,0.24449208,85873.0,85872.0,0.09753]
[1764566470829,0.23290402,85873.0,85872.0,0.09653]
[1764566471927,0.23290402,85873.0,85872.0,0.04111]
[1764566472326,0.24449208,85873.0,85872.0,0.04111]
[1764566473786,0.23290402,85873.0,85872.0,0.03911]
[1764566473991,0.23290402,85873.0,85872.0,0.09653]
[1764566473992,0.24449208,85873.0,85872.0,0.09653]
[1764566474747,0.01158806,85873.0,85872.0,0.09653]
[1764566474970,0.03142223,85880.0,85872.0,0.09653]
[1764566474971,0.03142223,85880.0,85877.0,0.01164456]
[1764566475147,0.03142223,85880.0,85879.0,0.03911]
[1764566475548,0.01164212,85895.0,85885.0,0.01164347]
[1764566475786,0.00184894,85890.0,85889.0,0.03911]
[1764566476294,0.00184894,85890.0,85889.0,0.09653]
[1764566477872,0.00184894,85890.0,85889.0,0.32938868]
[1764566478498,0.00184894,85890.0,85889.0,0.30388868]
[1764566479072,0.00184894,85890.0,85889.0,0.07103]
[1764566480931,0.00184894,85890.0,85889.0,0.07503]
[1764566481657,0.00184894,85890.0,85889.0,0.07103]
[1764566482027,0.00184894,85890.0,85889.0,0.07203]
[1764566482710,0.23470491,85890.0,85889.0,0.01461]
[1764566482932,0.23470491,85890.0,85889.0,0.001]
[1764566483958,0.24629297,85890.0,85889.0,0.001]
[1764566484703,0.23470491,85890.0,85889.0,0.001]
[1764566484871,0.24445488,85886.0,85885.0,0.03133]
[1764566485489,0.23289122,85877.0,85876.0,0.05832]
[1764566485839,0.24453248,85879.0,85876.0,0.09465]
[1764566486050,0.24453248,85879.0,85878.0,0.03633]
[1764566486450,0.01164388,85882.0,85878.0,0.03633]
[1764566486652,0.25611148,85882.0,85881.0,0.06447]
[1764566487277,0.24452342,85882.0,85881.0,0.1208]
[1764566488061,0.24452342,85882.0,85881.0,0.1218]
[1764566488435,0.26346627,85884.0,85881.0,0.1218]
[1764566488663,0.00736,85884.0,85883.0,0.03748]
[1764566488836,0.00736,85884.0,85883.0,0.09381]
[1764566490233,0.00736,85884.0,85883.0,0.09474]
[1764566491591,0.01894806,85884.0,85883.0,0.09474]
[1764566491979,0.00736,85884.0,85883.0,0.09474]
[1764566492417,0.00736,85884.0,85883.0,0.03841]
[1764566492714,0.01894806,85884.0,85883.0,0.03841]
[1764566493081,0.01894806,85884.0,85883.0,0.001]
[1764566493481,0.02077,85884.0,85883.0,0.001]
[1764566493681,0.03235806,85884.0,85883.0,0.001]
[1764566494082,0.03235806,85884.0,85883.0,1.4419]
[1764566494488,0.03235806,85884.0,85883.0,1.4409]
[1764566495094,0.01894806,85884.0,85883.0,1.4409]
[1764566495915,0.02094806,85884.0,85883.0,1.4409]
[1764566496132,0.01894806,85884.0,85883.0,1.4409]
[1764566496634,0.01994806,85884.0,85883.0,1.4409]
[1764566497751,0.00836,85884.0,85883.0,1.53471]
[1764566498142,0.01994806,85884.0,85883.0,1.53471]
[1764566498338,0.001,85884.0,85883.0,1.53471]
[1764566498935,0.24451027,85886.0,85883.0,1.53471]
[1764566499143,0.24451027,85886.0,85885.0,0.03748]
[1764566499964,0.25609833,85886.0,85885.0,0.03748]
[1764566500142,0.01158806,85886.0,85885.0,0.09381]